[Event "*** Biggest EVER Titled Tuesday"]
[Site "Chess.com"]
[Date "2018.04.17"]
[Round "7"]
[White "biostatistician"]
[Black "Alex_Molchanov"]
[Result "1/2-1/2"]
[WhiteElo "2443"]
[BlackElo "2542"]
[TimeControl "180+2"]
[EndTime "14:39:04 PDT"]
[Termination "Game drawn by repetition"]

1. d4 {[%clk 0:03:01.9]} 1... Nf6 {[%clk 0:03:00.3]} 2. Nf3 {[%clk 0:03:03.8]}
2... e6 {[%clk 0:03:01.1]} 3. c4 {[%clk 0:03:05.1]} 3... b6 {[%clk 0:03:02.2]}
4. Nc3 {[%clk 0:03:05.8]} 4... Bb4 {[%clk 0:03:02.6]} 5. Qc2 {[%clk 0:03:06.7]}
5... Bb7 {[%clk 0:03:03.6]} 6. a3 {[%clk 0:03:08.6]} 6... Bxc3+ {[%clk
0:03:04.5]} 7. Qxc3 {[%clk 0:03:10.5]} 7... d6 {[%clk 0:03:02.8]} 8. Bg5 {[%clk
0:03:10.1]} 8... h6 {[%clk 0:03:02.8]} 9. Bh4 {[%clk 0:03:10.9]} 9... Nbd7
{[%clk 0:03:03.3]} 10. Nd2 {[%clk 0:03:11.3]} 10... a5 {[%clk 0:03:00.5]} 11. b3
{[%clk 0:03:11.4]} 11... Qe7 {[%clk 0:03:00.3]} 12. f3 {[%clk 0:03:11.8]} 12...
e5 {[%clk 0:02:53.8]} 13. e3 {[%clk 0:02:52.7]} 13... Rd8 {[%clk 0:02:21.7]} 14.
Be2 {[%clk 0:02:52]} 14... c5 {[%clk 0:02:07.8]} 15. d5 {[%clk 0:02:23.9]} 15...
Ra8 {[%clk 0:02:06.7]} 16. Qc2 {[%clk 0:02:21.5]} 16... g5 {[%clk 0:01:56.4]}
17. Bf2 {[%clk 0:02:21.3]} 17... Bc8 {[%clk 0:01:50.6]} 18. Bd3 {[%clk
0:02:21.5]} 18... Nf8 {[%clk 0:01:46]} 19. Nf1 {[%clk 0:02:18.6]} 19... Nh5
{[%clk 0:01:45.4]} 20. g4 {[%clk 0:02:16.7]} 20... Nf6 {[%clk 0:01:37.6]} 21. h4
{[%clk 0:02:17.2]} 21... e4 {[%clk 0:01:31.7]} 22. Bxe4 {[%clk 0:01:46.1]} 22...
Nxe4 {[%clk 0:01:31.9]} 23. Qxe4 {[%clk 0:01:47]} 23... Qxe4 {[%clk 0:01:28.5]}
24. fxe4 {[%clk 0:01:48.9]} 24... gxh4 {[%clk 0:01:24.5]} 25. Bxh4 {[%clk
0:01:25.7]} 25... Bxg4 {[%clk 0:01:22.2]} 26. Bf6 {[%clk 0:01:17.8]} 26... Rh7
{[%clk 0:01:22.9]} 27. Ng3 {[%clk 0:01:18.6]} 27... Kd7 {[%clk 0:01:13.7]} 28.
Kf2 {[%clk 0:01:15.9]} 28... Ng6 {[%clk 0:01:08.2]} 29. Rag1 {[%clk 0:01:13]}
29... Re8 {[%clk 0:01:02.6]} 30. Nf5 {[%clk 0:01:08.8]} 30... Bxf5 {[%clk
0:01:01.8]} 31. exf5 {[%clk 0:01:10.7]} 31... Ne5 {[%clk 0:01:02.8]} 32. a4
{[%clk 0:00:54.5]} 32... h5 {[%clk 0:00:38.1]} 33. e4 {[%clk 0:00:53]} 33... Rh6
{[%clk 0:00:34]} 34. Bxe5 {[%clk 0:00:40.6]} 34... Rxe5 {[%clk 0:00:34.7]} 35.
Kf3 {[%clk 0:00:42.1]} 35... Re8 {[%clk 0:00:35.6]} 36. Rh4 {[%clk 0:00:38.9]}
36... Ke7 {[%clk 0:00:35.2]} 37. Kf4 {[%clk 0:00:33]} 37... Kf6 {[%clk
0:00:34.3]} 38. Rgh1 {[%clk 0:00:30.7]} 38... Reh8 {[%clk 0:00:34.7]} 39. R1h2
{[%clk 0:00:31.9]} 39... R6h7 {[%clk 0:00:34.3]} 40. Rg2 {[%clk 0:00:31]} 40...
Re8 {[%clk 0:00:31.8]} 41. Rg3 {[%clk 0:00:29.4]} 41... Rh6 {[%clk 0:00:31]} 42.
Re3 {[%clk 0:00:23.3]} 42... Rh7 {[%clk 0:00:27.8]} 43. Reh3 {[%clk 0:00:22.3]}
43... Reh8 {[%clk 0:00:27.8]} 44. Rh2 {[%clk 0:00:23.7]} 44... Rh6 {[%clk
0:00:28.1]} 45. Rg2 {[%clk 0:00:24.5]} 45... R6h7 {[%clk 0:00:28.2]} 46. Rg5
{[%clk 0:00:23.1]} 46... Rh6 {[%clk 0:00:26.5]} 47. Rg2 {[%clk 0:00:23]} 47...
R6h7 {[%clk 0:00:27.4]} 48. Re2 {[%clk 0:00:23.8]} 48... Re8 {[%clk 0:00:28]}
49. Re1 {[%clk 0:00:23.9]} 49... Rh6 {[%clk 0:00:28.4]} 50. Rh3 {[%clk
0:00:23.1]} 50... h4 {[%clk 0:00:26]} 51. Reh1 {[%clk 0:00:23.2]} 51... Reh8
{[%clk 0:00:26.2]} 52. R1h2 {[%clk 0:00:21.4]} 52... R6h7 {[%clk 0:00:26.2]} 53.
Rh1 {[%clk 0:00:22.6]} 53... Rh6 {[%clk 0:00:27.3]} 54. R1h2 {[%clk 0:00:24]}
54... R6h7 {[%clk 0:00:28.5]} 55. Rh1 {[%clk 0:00:25.3]} 55... Rh6 {[%clk
0:00:29.4]} 56. R1h2 {[%clk 0:00:26.8]} 56... Rh5 {[%clk 0:00:28.5]} 57. Rh1
{[%clk 0:00:27.7]} 57... R5h6 {[%clk 0:00:29.8]} 58. R1h2 {[%clk 0:00:28.9]}
58... Rh5 {[%clk 0:00:30.4]} 59. Rh1 {[%clk 0:00:30.1]} 59... R5h6 {[%clk
0:00:22.7]} 1/2-1/2

[Event "*** Biggest EVER Titled Tuesday"]
[Site "Chess.com"]
[Date "2018.04.17"]
[Round "7"]
[White "kirillshevchenko"]
[Black "nailbeshirli"]
[Result "0-1"]
[WhiteElo "2340"]
[BlackElo "2333"]
[TimeControl "180+2"]
[EndTime "14:39:06 PDT"]
[Termination "nailbeshirli won by checkmate"]

1. e4 {[%clk 0:02:58.8]} 1... Nf6 {[%clk 0:02:42.4]} 2. e5 {[%clk 0:02:57.5]}
2... Nd5 {[%clk 0:02:38.3]} 3. d4 {[%clk 0:02:58.3]} 3... d6 {[%clk 0:02:38.9]}
4. c4 {[%clk 0:02:58.8]} 4... Nb6 {[%clk 0:02:39.8]} 5. exd6 {[%clk 0:03:00]}
5... cxd6 {[%clk 0:02:41.7]} 6. Nc3 {[%clk 0:03:00.8]} 6... g6 {[%clk
0:02:43.6]} 7. Be3 {[%clk 0:03:01.9]} 7... Bg7 {[%clk 0:02:45.5]} 8. Rc1 {[%clk
0:03:03]} 8... Kf8 {[%clk 0:02:47.4]} 9. Nf3 {[%clk 0:02:58.4]} 9... Nc6 {[%clk
0:02:43.9]} 10. b3 {[%clk 0:02:51.9]} 10... Bf5 {[%clk 0:02:42]} 11. d5 {[%clk
0:02:47.4]} 11... Ne5 {[%clk 0:02:41.2]} 12. Nd4 {[%clk 0:02:48.5]} 12... Nbd7
{[%clk 0:02:38.6]} 13. Be2 {[%clk 0:02:14]} 13... h5 {[%clk 0:02:17.9]} 14. Nxf5
{[%clk 0:01:29.9]} 14... gxf5 {[%clk 0:02:16.2]} 15. Bxh5 {[%clk 0:01:30.1]}
15... Qa5 {[%clk 0:02:00.7]} 16. O-O {[%clk 0:01:14.9]} 16... Nf6 {[%clk
0:01:50.3]} 17. Be2 {[%clk 0:01:13.5]} 17... Neg4 {[%clk 0:01:36]} 18. Bf4
{[%clk 0:00:57.7]} 18... Nh5 {[%clk 0:01:30.8]} 19. Bd2 {[%clk 0:00:58.8]} 19...
Be5 {[%clk 0:01:09]} 20. h3 {[%clk 0:00:44.7]} 20... Nhf6 {[%clk 0:01:06.6]} 21.
Ne4 {[%clk 0:00:09.6]} 21... Qb6 {[%clk 0:01:05.6]} 22. c5 {[%clk 0:00:05.6]}
22... dxc5 {[%clk 0:01:06.2]} 23. Nxf6 {[%clk 0:00:07]} 23... Nxf6 {[%clk
0:01:02.4]} 24. Be3 {[%clk 0:00:06.4]} 24... Ne4 {[%clk 0:01:01.2]} 25. Bd3
{[%clk 0:00:03.8]} 25... Qg6 {[%clk 0:00:55.7]} 26. Bxe4 {[%clk 0:00:04.3]}
26... fxe4 {[%clk 0:00:56.8]} 27. Qg4 {[%clk 0:00:02.9]} 27... Bh2+ {[%clk
0:00:57]} 28. Kh1 {[%clk 0:00:03.7]} 28... Qxg4 {[%clk 0:00:57.3]} 29. hxg4
{[%clk 0:00:05.6]} 29... Bd6+ {[%clk 0:00:56.2]} 30. Kg1 {[%clk 0:00:06.9]}
30... Kg7 {[%clk 0:00:53.8]} 31. f3 {[%clk 0:00:05.1]} 31... exf3 {[%clk
0:00:54.4]} 32. gxf3 {[%clk 0:00:06.3]} 32... Rh3 {[%clk 0:00:51.6]} 33. Rc2
{[%clk 0:00:03.4]} 33... Rah8 {[%clk 0:00:51.6]} 34. Rg2 {[%clk 0:00:04.3]}
34... Bg3 {[%clk 0:00:50.8]} 35. Rxg3 {[%clk 0:00:03.2]} 35... Rxg3+ {[%clk
0:00:52]} 36. Kf2 {[%clk 0:00:05.1]} 36... Rhh3 {[%clk 0:00:50.9]} 37. Ke2
{[%clk 0:00:04.1]} 37... Rg2+ {[%clk 0:00:52.2]} 38. Bf2 {[%clk 0:00:02.7]}
38... b6 {[%clk 0:00:51.7]} 39. Ke3 {[%clk 0:00:02.9]} 39... Rxg4 {[%clk
0:00:52]} 40. Ke2 {[%clk 0:00:02.6]} 40... Rg5 {[%clk 0:00:51.6]} 41. Be3 {[%clk
0:00:03.2]} 41... Rh2+ {[%clk 0:00:50.9]} 42. Kd3 {[%clk 0:00:03.3]} 42... Rxd5+
{[%clk 0:00:52]} 43. Ke4 {[%clk 0:00:04.6]} 43... e6 {[%clk 0:00:53.1]} 44. Rg1+
{[%clk 0:00:03.9]} 44... Kf8 {[%clk 0:00:54.3]} 45. Kf4 {[%clk 0:00:02.7]} 45...
Rh4+ {[%clk 0:00:53.3]} 46. Kg3 {[%clk 0:00:03.9]} 46... Rh8 {[%clk 0:00:53.5]}
47. Kf2 {[%clk 0:00:02.9]} 47... Ke7 {[%clk 0:00:54.6]} 48. Bg5+ {[%clk
0:00:03.1]} 48... Kd7 {[%clk 0:00:54.3]} 49. Bf6 {[%clk 0:00:02.6]} 49... Rh2+
{[%clk 0:00:54.5]} 50. Ke3 {[%clk 0:00:04.1]} 50... Rhd2 {[%clk 0:00:53.3]} 51.
Rg7 {[%clk 0:00:04.8]} 51... R2d3+ {[%clk 0:00:51]} 52. Ke4 {[%clk 0:00:06.2]}
52... Kc6 {[%clk 0:00:50.9]} 53. Be5 {[%clk 0:00:04.7]} 53... Rd2 {[%clk
0:00:47.5]} 54. f4 {[%clk 0:00:03.6]} 54... f5+ {[%clk 0:00:46.3]} 55. Kf3
{[%clk 0:00:03.5]} 55... R5d3# {[%clk 0:00:48.2]} 0-1

[Event "*** Biggest EVER Titled Tuesday"]
[Site "Chess.com"]
[Date "2018.04.17"]
[Round "7"]
[White "DishonorOnYourCow"]
[Black "ChainsOfFantasia"]
[Result "0-1"]
[WhiteElo "2317"]
[BlackElo "2403"]
[TimeControl "180+2"]
[EndTime "14:39:20 PDT"]
[Termination "ChainsOfFantasia won by resignation"]

1. d4 {[%clk 0:03:01.9]} 1... Nf6 {[%clk 0:03:00.6]} 2. c4 {[%clk 0:03:02.6]}
2... e6 {[%clk 0:03:01.3]} 3. Nc3 {[%clk 0:03:03.5]} 3... d5 {[%clk 0:03:02.6]}
4. cxd5 {[%clk 0:03:04.3]} 4... exd5 {[%clk 0:03:04.5]} 5. Bg5 {[%clk
0:03:05.1]} 5... c6 {[%clk 0:03:05.3]} 6. e3 {[%clk 0:03:05.9]} 6... Nbd7 {[%clk
0:03:06.7]} 7. Bd3 {[%clk 0:03:07]} 7... Be7 {[%clk 0:03:07.8]} 8. Nge2 {[%clk
0:03:08.2]} 8... Nh5 {[%clk 0:03:07.4]} 9. Bxe7 {[%clk 0:03:07.2]} 9... Qxe7
{[%clk 0:03:09.3]} 10. Ng3 {[%clk 0:03:02.3]} 10... Nxg3 {[%clk 0:03:08.7]} 11.
hxg3 {[%clk 0:03:03.1]} 11... Nf6 {[%clk 0:03:09.3]} 12. Qc2 {[%clk 0:03:00.3]}
12... Be6 {[%clk 0:03:05.4]} 13. Rc1 {[%clk 0:02:56.4]} 13... O-O-O {[%clk
0:03:05]} 14. O-O {[%clk 0:02:56.4]} 14... h5 {[%clk 0:03:00.8]} 15. Na4 {[%clk
0:02:56.8]} 15... h4 {[%clk 0:03:01.2]} 16. Qc5 {[%clk 0:01:22.5]} 16... Qxc5
{[%clk 0:02:42.6]} 17. Nxc5 {[%clk 0:01:24.4]} 17... hxg3 {[%clk 0:02:44]} 18.
fxg3 {[%clk 0:01:25]} 18... Rh5 {[%clk 0:02:38.8]} 19. Be2 {[%clk 0:00:45.5]}
19... Rg5 {[%clk 0:02:35.8]} 20. b4 {[%clk 0:00:33.3]} 20... Rxg3 {[%clk
0:02:32.6]} 21. Kf2 {[%clk 0:00:33]} 21... Rg5 {[%clk 0:02:27]} 22. b5 {[%clk
0:00:33.6]} 22... Bd7 {[%clk 0:01:57]} 23. bxc6 {[%clk 0:00:24.9]} 23... Bxc6
{[%clk 0:01:55.7]} 24. Bf3 {[%clk 0:00:23.7]} 24... Re8 {[%clk 0:01:49.3]} 25.
Rc3 {[%clk 0:00:18.4]} 25... Rf5 {[%clk 0:01:48.7]} 26. Kg1 {[%clk 0:00:11.8]}
26... g5 {[%clk 0:01:38.7]} 27. Bg4 {[%clk 0:00:12.9]} 27... Nxg4 {[%clk
0:01:33.9]} 28. Rxf5 {[%clk 0:00:14.2]} 28... f6 {[%clk 0:01:27.3]} 29. Rf3
{[%clk 0:00:12.4]} 29... Kd8 {[%clk 0:01:25.4]} 30. Nb3 {[%clk 0:00:13.2]} 30...
Bb5 {[%clk 0:01:20.6]} 31. Nc5 {[%clk 0:00:12.1]} 31... Be2 {[%clk 0:01:20.4]}
32. Rg3 {[%clk 0:00:13.1]} 32... b6 {[%clk 0:01:20.5]} 33. Nd3 {[%clk
0:00:13.4]} 33... Nxe3 {[%clk 0:01:09.1]} 34. Nc1 {[%clk 0:00:13.6]} 34... Nd1
{[%clk 0:01:10.2]} 35. Ra3 {[%clk 0:00:12.7]} 35... a5 {[%clk 0:00:58.1]} 36.
Nxe2 {[%clk 0:00:13.6]} 36... Rxe2 {[%clk 0:00:59.7]} 37. Rgf3 {[%clk
0:00:14.7]} 37... Re6 {[%clk 0:00:51.6]} 38. Rad3 {[%clk 0:00:12.4]} 38... Nb2
{[%clk 0:00:51.9]} 39. Rb3 {[%clk 0:00:13.4]} 39... Nc4 {[%clk 0:00:52.8]} 40.
Rb5 {[%clk 0:00:14.4]} 40... Rd6 {[%clk 0:00:51.1]} 41. g4 {[%clk 0:00:13.1]}
41... Kd7 {[%clk 0:00:51.5]} 42. Kh2 {[%clk 0:00:12.3]} 42... Kc6 {[%clk
0:00:52.5]} 43. Rb1 {[%clk 0:00:12.8]} 43... Nd2 {[%clk 0:00:47.9]} 44. Rc1+
{[%clk 0:00:12.3]} 44... Kd7 {[%clk 0:00:49.4]} 45. Rd3 {[%clk 0:00:12.1]} 45...
Ne4 {[%clk 0:00:49.5]} 46. Kg2 {[%clk 0:00:10.9]} 46... Rc6 {[%clk 0:00:44.8]}
47. Rdd1 {[%clk 0:00:06.1]} 47... b5 {[%clk 0:00:39.7]} 48. Rb1 {[%clk
0:00:06.3]} 48... b4 {[%clk 0:00:40.5]} 49. Rbc1 {[%clk 0:00:06.9]} 49... Rc3
{[%clk 0:00:36.2]} 50. Rh1 {[%clk 0:00:06.8]} 50... Kc6 {[%clk 0:00:35.6]} 51.
Rhe1 {[%clk 0:00:04.1]} 51... Kb5 {[%clk 0:00:35.4]} 52. Kf1 {[%clk 0:00:05.1]}
52... Kc4 {[%clk 0:00:35.3]} 53. Rb1 {[%clk 0:00:06.2]} 53... Kxd4 {[%clk
0:00:36.1]} 54. Red1+ {[%clk 0:00:07.2]} 54... Kc4 {[%clk 0:00:36]} 55. Kg2
{[%clk 0:00:07]} 55... d4 {[%clk 0:00:36]} 56. Rf1 {[%clk 0:00:07.5]} 56... Nd2
{[%clk 0:00:36]} 57. Rbd1 {[%clk 0:00:06.2]} 57... Nxf1 {[%clk 0:00:36.6]} 58.
Rxf1 {[%clk 0:00:07.5]} 58... Rc2+ {[%clk 0:00:37.5]} 59. Kg3 {[%clk 0:00:08.5]}
59... d3 {[%clk 0:00:38.4]} 60. Rxf6 {[%clk 0:00:09.6]} 60... d2 {[%clk
0:00:39.1]} 61. Rc6+ {[%clk 0:00:10.7]} 61... Kd3 {[%clk 0:00:40.1]} 62. Rd6+
{[%clk 0:00:12]} 62... Kc3 {[%clk 0:00:40.2]} 63. Kf3 {[%clk 0:00:12]} 63... Rc1
{[%clk 0:00:39.8]} 64. Rc6+ {[%clk 0:00:12.6]} 64... Kb2 {[%clk 0:00:41]} 0-1

[Event "*** Biggest EVER Titled Tuesday"]
[Site "Chess.com"]
[Date "2018.04.17"]
[Round "7"]
[White "Oleksandr_Bortnyk"]
[Black "Rakhmanov_Aleksandr"]
[Result "0-1"]
[WhiteElo "2787"]
[BlackElo "2674"]
[TimeControl "180+2"]
[EndTime "14:39:35 PDT"]
[Termination "Rakhmanov_Aleksandr won by resignation"]

1. d4 {[%clk 0:03:01.2]} 1... Nf6 {[%clk 0:03:00.8]} 2. Nc3 {[%clk 0:03:02.1]}
2... d5 {[%clk 0:02:59.2]} 3. Bf4 {[%clk 0:03:02.6]} 3... g6 {[%clk 0:02:59.3]}
4. e3 {[%clk 0:03:02.8]} 4... c6 {[%clk 0:02:58.3]} 5. h4 {[%clk 0:03:03.8]}
5... h5 {[%clk 0:02:58.7]} 6. Nf3 {[%clk 0:03:04.5]} 6... Bg7 {[%clk 0:02:59.7]}
7. Ne5 {[%clk 0:03:05.7]} 7... Nbd7 {[%clk 0:02:58.5]} 8. Bd3 {[%clk 0:03:05.9]}
8... Nxe5 {[%clk 0:02:54.9]} 9. Bxe5 {[%clk 0:03:01.9]} 9... Be6 {[%clk
0:02:55.7]} 10. Ne2 {[%clk 0:02:57.9]} 10... Qd7 {[%clk 0:02:55.7]} 11. Nf4
{[%clk 0:02:55.5]} 11... Bf5 {[%clk 0:02:56.6]} 12. Qf3 {[%clk 0:02:53]} 12...
Bxd3 {[%clk 0:02:41.7]} 13. Nxd3 {[%clk 0:02:53.7]} 13... Qg4 {[%clk 0:02:37.8]}
14. Rc1 {[%clk 0:01:56]} 14... Qxf3 {[%clk 0:02:30.9]} 15. gxf3 {[%clk
0:01:57.9]} 15... O-O {[%clk 0:02:11.1]} 16. Nc5 {[%clk 0:01:44.9]} 16... b6
{[%clk 0:02:06.5]} 17. Na6 {[%clk 0:01:46]} 17... Rac8 {[%clk 0:01:57.3]} 18. c4
{[%clk 0:01:43.7]} 18... Nd7 {[%clk 0:01:53.9]} 19. Bxg7 {[%clk 0:01:42]} 19...
Kxg7 {[%clk 0:01:55.8]} 20. cxd5 {[%clk 0:01:30]} 20... cxd5 {[%clk 0:01:56.5]}
21. Ke2 {[%clk 0:00:54.8]} 21... e5 {[%clk 0:01:36.9]} 22. dxe5 {[%clk
0:00:54.6]} 22... Nxe5 {[%clk 0:01:37.8]} 23. f4 {[%clk 0:00:55.9]} 23... Nc4
{[%clk 0:01:34.9]} 24. b3 {[%clk 0:00:53.4]} 24... Nd6 {[%clk 0:01:35.2]} 25.
Nc7 {[%clk 0:00:30.5]} 25... d4 {[%clk 0:01:19.7]} 26. Rhd1 {[%clk 0:00:20.1]}
26... Ne4 {[%clk 0:00:50.2]} 27. exd4 {[%clk 0:00:05.4]} 27... Rfd8 {[%clk
0:00:40.9]} 28. Kf3 {[%clk 0:00:04]} 28... Nd6 {[%clk 0:00:41]} 29. d5 {[%clk
0:00:02.9]} 29... Nf5 {[%clk 0:00:41.9]} 30. b4 {[%clk 0:00:02.7]} 30... Nxh4+
{[%clk 0:00:40.6]} 31. Ke4 {[%clk 0:00:04.1]} 31... Nf5 {[%clk 0:00:37.8]} 32.
a4 {[%clk 0:00:03.1]} 32... Rd7 {[%clk 0:00:29.5]} 33. Ne6+ {[%clk 0:00:03.5]}
33... fxe6 {[%clk 0:00:30.1]} 34. Rxc8 {[%clk 0:00:04.6]} 34... Nd6+ {[%clk
0:00:31.3]} 35. Ke5 {[%clk 0:00:04.6]} 35... Nxc8 {[%clk 0:00:32.2]} 36. Rc1
{[%clk 0:00:05.7]} 36... Rxd5+ {[%clk 0:00:26.9]} 37. Kxe6 {[%clk 0:00:07]}
37... Rd6+ {[%clk 0:00:21.6]} 38. Ke5 {[%clk 0:00:07.5]} 38... Rd8 {[%clk
0:00:22.8]} 39. Rc7+ {[%clk 0:00:08.5]} 39... Kh6 {[%clk 0:00:24.1]} 40. a5
{[%clk 0:00:06.1]} 40... bxa5 {[%clk 0:00:24.7]} 41. bxa5 {[%clk 0:00:08]} 41...
Re8+ {[%clk 0:00:21.1]} 42. Kf6 {[%clk 0:00:09.3]} 42... Rf8+ {[%clk 0:00:22.2]}
43. Ke5 {[%clk 0:00:10.6]} 43... h4 {[%clk 0:00:23.2]} 44. Ke4 {[%clk
0:00:11.4]} 44... Nd6+ {[%clk 0:00:22.4]} 45. Kf3 {[%clk 0:00:12.6]} 45... Nb5
{[%clk 0:00:21]} 46. Rb7 {[%clk 0:00:13.1]} 46... a6 {[%clk 0:00:18.2]} 47. Kg4
{[%clk 0:00:13.6]} 47... h3 {[%clk 0:00:18.4]} 48. Kxh3 {[%clk 0:00:14.2]} 48...
Rxf4 {[%clk 0:00:19.8]} 49. Kg3 {[%clk 0:00:15.5]} 49... Rf6 {[%clk 0:00:18.4]}
50. f3 {[%clk 0:00:13.3]} 50... Nd4 {[%clk 0:00:19]} 51. f4 {[%clk 0:00:13.8]}
51... Ne2+ {[%clk 0:00:18.8]} 52. Kf3 {[%clk 0:00:14.4]} 52... Nxf4 {[%clk
0:00:19.5]} 53. Ke4 {[%clk 0:00:15.1]} 53... Nh5 {[%clk 0:00:20.5]} 54. Ra7
{[%clk 0:00:07.2]} 54... g5 {[%clk 0:00:21.2]} 55. Rb7 {[%clk 0:00:07.3]} 55...
g4 {[%clk 0:00:21.9]} 56. Rb6 {[%clk 0:00:06]} 56... g3 {[%clk 0:00:19.9]} 57.
Ke3 {[%clk 0:00:06]} 57... Kg5 {[%clk 0:00:19.8]} 58. Rb2 {[%clk 0:00:03.8]}
58... Kh4 {[%clk 0:00:20.5]} 0-1

[Event "*** Biggest EVER Titled Tuesday"]
[Site "Chess.com"]
[Date "2018.04.17"]
[Round "7"]
[White "Konavets"]
[Black "KRASAVCHIK2002"]
[Result "1/2-1/2"]
[WhiteElo "2771"]
[BlackElo "2026"]
[TimeControl "180+2"]
[EndTime "14:39:36 PDT"]
[Termination "Game drawn by agreement"]

1. d4 {[%clk 0:02:37.4]} 1... Nf6 {[%clk 0:03:00.3]} 2. Nf3 {[%clk 0:02:26.2]}
2... c5 {[%clk 0:03:00.9]} 3. d5 {[%clk 0:02:26.9]} 3... e6 {[%clk 0:03:01.8]}
4. Nc3 {[%clk 0:02:24.7]} 4... b5 {[%clk 0:02:55.6]} 5. dxe6 {[%clk 0:02:20.3]}
5... fxe6 {[%clk 0:02:57.5]} 6. Nxb5 {[%clk 0:02:21.6]} 6... d5 {[%clk
0:02:56.2]} 7. c4 {[%clk 0:01:38.3]} 7... a6 {[%clk 0:02:38.9]} 8. Na3 {[%clk
0:01:38.6]} 8... Be7 {[%clk 0:02:29]} 9. g3 {[%clk 0:01:36.6]} 9... O-O {[%clk
0:02:28.6]} 10. Bg2 {[%clk 0:01:38.5]} 10... Bb7 {[%clk 0:02:29.5]} 11. O-O
{[%clk 0:01:40]} 11... Qb6 {[%clk 0:02:19.1]} 12. b3 {[%clk 0:00:58.6]} 12...
Nbd7 {[%clk 0:02:13.2]} 13. cxd5 {[%clk 0:00:58]} 13... exd5 {[%clk 0:02:08.6]}
14. Bd2 {[%clk 0:00:49.7]} 14... Ne4 {[%clk 0:02:04.2]} 15. Be1 {[%clk
0:00:42.3]} 15... Bf6 {[%clk 0:02:03.1]} 16. Rb1 {[%clk 0:00:42.1]} 16... Rad8
{[%clk 0:01:49]} 17. Qc2 {[%clk 0:00:39]} 17... Qe6 {[%clk 0:01:28.3]} 18. Rd1
{[%clk 0:00:37.5]} 18... Rc8 {[%clk 0:01:12]} 19. Nb1 {[%clk 0:00:38.1]} 19...
g5 {[%clk 0:01:09.1]} 20. Nc3 {[%clk 0:00:39.1]} 20... Nxc3 {[%clk 0:00:56.3]}
21. Bxc3 {[%clk 0:00:41]} 21... Bxc3 {[%clk 0:00:57.1]} 22. Qxc3 {[%clk
0:00:42.9]} 22... h6 {[%clk 0:00:56]} 23. Rfe1 {[%clk 0:00:39.6]} 23... d4
{[%clk 0:00:53.7]} 24. Qb2 {[%clk 0:00:40.8]} 24... Qf6 {[%clk 0:00:50.9]} 25.
Rf1 {[%clk 0:00:40.8]} 25... Bd5 {[%clk 0:00:47]} 26. b4 {[%clk 0:00:40.9]}
26... Rb8 {[%clk 0:00:45.5]} 27. a3 {[%clk 0:00:39.6]} 27... a5 {[%clk
0:00:44.6]} 28. b5 {[%clk 0:00:38]} 28... Rb6 {[%clk 0:00:42.8]} 29. a4 {[%clk
0:00:39.1]} 29... Qf7 {[%clk 0:00:38.8]} 30. Ne1 {[%clk 0:00:39.7]} 30... Bxg2
{[%clk 0:00:38.4]} 31. Nxg2 {[%clk 0:00:41.6]} 31... Nf6 {[%clk 0:00:39.6]} 32.
e3 {[%clk 0:00:42.8]} 32... Qc4 {[%clk 0:00:28.2]} 33. exd4 {[%clk 0:00:43.4]}
33... Qxa4 {[%clk 0:00:26.5]} 34. dxc5 {[%clk 0:00:44.8]} 34... Rxb5 {[%clk
0:00:27.3]} 35. Qe5 {[%clk 0:00:45.7]} 35... Qc4 {[%clk 0:00:25.3]} 36. Ne3
{[%clk 0:00:47]} 36... Qxc5 {[%clk 0:00:25.8]} 37. Qe6+ {[%clk 0:00:47.2]} 37...
Kg7 {[%clk 0:00:19.6]} 38. Rd6 {[%clk 0:00:48]} 38... Qe5 {[%clk 0:00:17]} 39.
Rc1 {[%clk 0:00:47.4]} 39... Qxe6 {[%clk 0:00:17.6]} 40. Rxe6 {[%clk 0:00:49.3]}
40... Rf7 {[%clk 0:00:17]} 41. Ra6 {[%clk 0:00:50.5]} 41... h5 {[%clk
0:00:17.4]} 42. Rcc6 {[%clk 0:00:51]} 42... Ne4 {[%clk 0:00:15.2]} 43. Rg6+
{[%clk 0:00:51.4]} 43... Kh7 {[%clk 0:00:13.7]} 44. Rh6+ {[%clk 0:00:52.9]}
44... Kg7 {[%clk 0:00:15.2]} 45. Rag6+ {[%clk 0:00:54.3]} 45... Kf8 {[%clk
0:00:16.3]} 46. Rxh5 {[%clk 0:00:41.4]} 46... Rxf2 {[%clk 0:00:13.5]} 47. Rd6
{[%clk 0:00:26.1]} 47... Re2 {[%clk 0:00:10.7]} 48. Rd3 {[%clk 0:00:19.6]} 48...
Rb1+ {[%clk 0:00:08.4]} 49. Rd1 {[%clk 0:00:20.3]} 49... Rxd1+ {[%clk
0:00:08.6]} 50. Nxd1 {[%clk 0:00:20.9]} 50... Re1+ {[%clk 0:00:10.5]} 51. Kg2
{[%clk 0:00:22.6]} 51... Rxd1 {[%clk 0:00:12.4]} 52. Rh8+ {[%clk 0:00:23.9]}
52... Kg7 {[%clk 0:00:13]} 53. Ra8 {[%clk 0:00:25.8]} 53... Rd2+ {[%clk
0:00:14.3]} 54. Kf3 {[%clk 0:00:27.1]} 54... Ra2 {[%clk 0:00:16.2]} 55. Kxe4
{[%clk 0:00:27.7]} 55... Rxh2 {[%clk 0:00:17.1]} 56. Kf5 {[%clk 0:00:27.1]}
56... Rf2+ {[%clk 0:00:15.4]} 57. Kxg5 {[%clk 0:00:28.1]} 57... Ra2 {[%clk
0:00:17.3]} 58. g4 {[%clk 0:00:29]} 58... a4 {[%clk 0:00:17.4]} 59. Ra7+ {[%clk
0:00:30.5]} 59... Kf8 {[%clk 0:00:18.1]} 60. Kg6 {[%clk 0:00:32.4]} 60... a3
{[%clk 0:00:18.6]} 61. g5 {[%clk 0:00:33.9]} 61... Ra1 {[%clk 0:00:19.4]} 62.
Ra8+ {[%clk 0:00:35.2]} 62... Ke7 {[%clk 0:00:20.1]} 63. Kg7 {[%clk 0:00:37.1]}
63... a2 {[%clk 0:00:21.3]} 64. g6 {[%clk 0:00:38.5]} 64... Ke6 {[%clk
0:00:21.4]} 65. Ra5 {[%clk 0:00:39.4]} 65... Ke7 {[%clk 0:00:21.6]} 66. Ra6
{[%clk 0:00:38.4]} 66... Ke8 {[%clk 0:00:22.5]} 67. Kg8 {[%clk 0:00:39.3]} 67...
Rg1 {[%clk 0:00:22.5]} 68. Rxa2 {[%clk 0:00:38.9]} 68... Rxg6+ {[%clk
0:00:23.4]} 1/2-1/2